Cogmind - Beta 16.1 @@@ ROGUE MODE // 2026.02.21 @ 10:11:23 Player: Kosys Result: Destroyed by L-41 Fighter with Axe Performance ------------- Evolutions (4) 2000 Regions Visited (7) 1400 Robots Destroyed (48) 240 Value Destroyed (1287) 1287 Prototype IDs (4) 80 Alien Tech Used (0) 0 Bonus (526) 526 TOTAL SCORE: 5533 Bonus ------- High Alert Combat Kills 106 Follower Combat Kills 120 Aligned with FarCom 300 Cogmind --------- Core Integrity 0/850 Matter 222/300 Energy 67/100 System Corruption 1% Temperature Cool (0) Movement Core (100) Ox1 Location -6/Factory Parts ------- > --- POWER (2) -------- (None) > --- PROPULSION (4) --- (None) > --- UTILITY (5) ------ Melee Analysis Suite Hardlight Generator Hacking Suite > --- WEAPON (4) ------- (None) > --- INVENTORY (5) ---- Remote Datajack Peak State ------------ > --- POWER ------------ Light Ion Engine > --- PROPULSION ------- Carbon-fiber Leg Carbon-fiber Leg Titanium Leg > --- UTILITY ---------- Advanced Heat Sink Small Storage Unit Compact Battery Hardened Medium Armor Plating > --- WEAPON ----------- Heavy Laser Remote Datajack Remote Datajack > --- INVENTORY -------- Medium Laser Medium Laser Remote Datajack Remote Datajack Remote Datajack Remote Datajack Remote Datajack Remote Datajack [Rating: 36] Favorites ----------- Power Light Ion Engine Engine Light Ion Engine Power Core Fission Core Propulsion Wheel Treads Advanced Treads Leg Carbon-fiber Leg Wheel Wheel Flight Unit Cesium-ion Thruster Utility Small Storage Unit Device Seismic Detector Storage Small Storage Unit Processor Melee Analysis Suite Hackware Hacking Suite Protection Hardened Medium Armor Plating Weapon Medium Laser Energy Gun Medium Laser Energy Cannon Plasma Cannon Ballistic Gun Light Assault Rifle Launcher Advanced EMP Blaster Special Weapon Remote Datajack Build | -11 -10 -10 -10 -9 -8 -7 -6 ------- Run | Yrd Mat Min Exi Min Mat Fac Fac Slots Evolved 8 | . . . . . 4 2 2 Power 1 | . . . . . . 1 . Propulsion 2 | . . . . . 2 . . Utility 3 | . . . . . 2 . 1 Weapon 2 | . . . . . . 1 1 Parts Attached 58 | 11 3 . 1 3 23 7 10 Power 6 | 1 2 . . . 2 . 1 Engine 5 | 1 2 . . . 2 . . Core 1 | . . . . . . . 1 Reactor . | . . . . . . . . Propulsion 13 | 4 . . . 1 6 2 . Treads 2 | 1 . . . . 1 . . Leg 4 | . . . . . 3 1 . Wheel 6 | 3 . . . 1 2 . . Hover . | . . . . . . . . Flight 1 | . . . . . . 1 . Utility 20 | 4 . . 1 1 9 1 4 Device 8 | 1 . . 1 1 3 . 2 Storage 5 | 3 . . . . 2 . . Processor 1 | . . . . . . . 1 Hackware 1 | . . . . . . . 1 Protection 5 | . . . . . 4 1 . Artifact . | . . . . . . . . Weapon 19 | 2 1 . . 1 6 4 5 Energy Gun 7 | 2 1 . . 1 3 . . Energy Cannon 1 | . . . . . . . 1 Ballistic Gun 1 | . . . . . 1 . . Ballistic Cannon . | . . . . . . . . Launcher 2 | . . . . . 2 . . Special Weapon 8 | . . . . . . 4 4 Impact Weapon . | . . . . . . . . Slashing Weapon . | . . . . . . . . Piercing Weapon . | . . . . . . . . Special Melee Weapon . | . . . . . . . . Unidentified Prototypes 2 | . . . 1 . 1 . . Parts Lost 30 | . . . . 1 14 5 10 Power 4 | . . . . 1 2 . 1 Propulsion 8 | . . . . . 5 2 1 Utility 8 | . . . . . 5 . 3 Weapon 10 | . . . . . 2 3 5 Highest Loss Streak 5 | . . . . 1 4 3 5 To Critical Strikes . | . . . . . . . . Average Backups 6 | 5 7 8 7 6 6 6 4 Power . | . 1 1 1 . . . . Propulsion 1 | 3 3 2 2 2 . . . Utility 1 | . 1 . 1 2 2 . . Weapon 1 | . 2 4 3 2 2 . . Tool/Special . | . . . . . . . . Unused Backups 8 | 3 2 . 1 . . 2 . Power . | . . . . . . . . Propulsion 3 | 3 . . . . . . . Utility 3 | . 1 . . . . 2 . Weapon 2 | . 1 . 1 . . . . Tool/Special . | . . . . . . . . Average Slot Usage (%) 82 | . 100 100 100 99 76 83 48 Engine 8 | . 14 14 14 13 5 7 3 Treads 1 | . . . . . 4 . . Leg 9 | . . . . . 8 23 10 Wheel 12 | . 28 28 28 28 12 . . Device 7 | . 14 14 14 14 8 1 1 Storage 13 | . 14 14 14 14 14 15 6 Protection 6 | . . . . . 5 13 7 Energy Gun 17 | . 28 28 28 28 13 15 3 Launcher 1 | . . . . . 3 . . Special Weapon 2 | . . . . . . 5 6 Peak Build Rating 36 | 7 8 8 16 16 29 36 35 Average Rating 17 | 5 7 7 12 13 16 27 21 On Entrance 13 | . 7 7 8 16 8 29 30 Avg Prop Armor Cover (%) 4 | . . . . . 6 1 1 Naked Turns 71 | . . . . . . . 71 Heaviest Build 39 | 16 15 15 15 16 30 30 39 Greatest Support 47 | 26 20 20 20 20 47 47 40 Greatest Overweight (x) 3 | . . . . . 3 . 3 Average Overweight (x) . | . . . . . . . . Largest Inventory Capacity 8 | 8 8 8 8 8 8 8 8 Average Capacity 7 | 7 8 8 8 8 8 8 6 Most Carried 8 | 8 8 8 8 8 8 8 6 Average Carried 6 | 5 7 7 7 6 6 6 4 Final Capacity 8 | 8 8 8 8 8 8 8 5 Final Carried 8 | 7 8 8 8 6 5 6 1 Class Distribution -------------------- 61% | Mutant 16% | Tank 16% | Scavenger-Mutant Dominant Class ---------------- Mutant | -10/Materials Mutant | -10/Mines Mutant | -10/Exiles Mutant | -9/Mines Mutant | -8/Materials Tank | -7/Factory Scavenger-Mutant | -6/Factory Resources | -11 -10 -10 -10 -9 -8 -7 -6 ----------- Run | Yrd Mat Min Exi Min Mat Fac Fac Matter Collected 1145 | 389 . 30 . 52 430 242 2 Remotely . | . . . . . . . . Salvage Created 1623 | 152 44 172 . 132 804 319 . Parts 90 | 9 4 14 . 1 51 11 . Haulers Intercepted . | . . . . . . . . Recyclers Shooed 4 | . . 2 . . . . 2 Parts Field Recycled . | . . . . . . . . Retrieved Matter . | . . . . . . . . Parts Self-Destructed . | . . . . . . . . Prevented . | . . . . . . . . Parts Restored . | . . . . . . . . Kills | -11 -10 -10 -10 -9 -8 -7 -6 ------- Run | Yrd Mat Min Exi Min Mat Fac Fac Combat Hostiles Destroyed 28 | . . . . 2 22 4 . Guns 12 | . . . . 2 7 3 . AOE 13 | . . . . . 13 . . Classes Destroyed 11 | 3 1 . . 2 4 1 . Worker 7 | 2 . 2 . 1 2 . . Builder 4 | . . . . . 3 1 . Tunneler 4 | 1 . 3 . . . . . Recycler 3 | 1 . 1 . . . 1 . Watcher 2 | . 2 . . . . . . Swarmer 7 | . . . . . 7 . . Grunt 15 | . . . . 1 12 2 . Brawler 1 | . . . . . 1 . . Duelist 1 | . . . . 1 . . . Sentry 3 | . . . . . 2 1 . Programmer 1 | . . . . . . 1 . Best Kill Streak 9 | 2 1 4 . 2 9 3 . Combat Bots Only 7 | . . . . 2 7 3 . Max Kills in Single Turn 3 | 1 1 1 . 1 3 1 . Gunslinging . | . . . . . . . . Exploded 3 | . . . . . 3 . . Melee . | . . . . . . . . Uniques/NPCs Destroyed . | . . . . . . . . Combat | -11 -10 -10 -10 -9 -8 -7 -6 -------- Run | Yrd Mat Min Exi Min Mat Fac Fac Hostile Shots Fired 337 | . 3 2 . 13 129 53 137 Missed 115 | . 1 2 . 4 40 24 44 Hits 222 | . 2 . . 9 89 29 93 Melee 8 | . . . . 4 . . 4 Projectile 214 | . 2 . . 5 89 29 89 AOE 1 | . . . . . . . 1 Critical Strikes 9 | . . . . . 3 1 5 Damage Taken 4105 | . 18 5 . 200 1513 569 1800 Core 1271 | . . 3 . 45 318 45 860 Absorbed by Shields . | . . . . . . . . Core Remaining (%) 78 | 100 . . . 80 42 93 . Volleys Fired 171 | 13 7 14 . 10 74 47 6 Largest 3 | 2 2 2 . 2 2 3 1 Hottest 169 | 90 100 100 . 100 119 169 80 Shots Fired 303 | 26 14 28 . 20 127 82 6 Gun 249 | 26 14 28 . 20 100 61 . Cannon 3 | . . . . . . . 3 Launcher 27 | . . . . . 27 . . Special 24 | . . . . . . 21 3 Kinetic 8 | . . . . . 8 . . Thermal 244 | 26 14 28 . 20 92 61 3 Explosive 18 | . . . . . 18 . . Electromagnetic 9 | . . . . . 9 . . Robot Hit Streak 11 | 5 2 4 . 6 8 11 2 Robot Miss Streak 6 | 6 4 3 . 2 3 2 2 Penetration Max . | . . . . . . . . Secondary Targets 2 | . . . . . 2 . . Max Gunslinging Chain 1 | . . . . . 1 . . Shots Hit Robots 168 | 13 4 14 . 12 77 44 4 Core Hits 88 | 5 2 8 . 5 50 12 6 Critical Kills . | . . . . . . . . Critical Parts Destroyed . | . . . . . . . . Critical Strikes 14 | 1 . 2 . 2 6 3 . Burn 14 | 1 . 2 . 2 6 3 . Melee Attacks . | . . . . . . . . Impact . | . . . . . . . . Slashing . | . . . . . . . . Piercing . | . . . . . . . . Sneak Attacks . | . . . . . . . . Combat Hostiles . | . . . . . . . . Follow-up Attacks . | . . . . . . . . Damage Inflicted 3281 | 153 50 182 . 189 2131 454 122 Guns 1755 | 153 50 175 . 160 765 452 . Cannons 77 | . . . . . . . 77 Explosions 1362 | . . . . . 1362 . . Melee . | . . . . . . . . Ramming 87 | . . 7 . 29 4 2 45 Kinetic 52 | . . . . . 52 . . Thermal 1842 | 153 50 175 . 160 775 452 77 Explosive 958 | . . . . . 958 . . Electromagnetic 342 | . . . . . 342 . . Impact . | . . . . . . . . Slashing . | . . . . . . . . Piercing . | . . . . . . . . Highest Corruption 3 | . . . . . . 3 1 Average Corruption 2 | . . . . . . 2 1 Corruption Purged . | . . . . . . . . Corruption Blocked . | . . . . . . . . Effects 10 | . . . . . . 9 1 Message Errors 4 | . . . . . . 4 . Matter Fused 3 | . . . . . . 3 . Energy Discharges 1 | . . . . . . 1 . Data Loss (minor) 1 | . . . . . . 1 . Alerts 1 | . . . . . . . 1 Overload Shots . | . . . . . . . . Overflow Damage 56 | . . . . . 56 . . Projectiles . | . . . . . . . . Explosions 56 | . . . . . 56 . . Melee . | . . . . . . . . Knockbacks . | . . . . . . . . Impact . | . . . . . . . . Kinetic . | . . . . . . . . Secondary . | . . . . . . . . Self-Inflicted Damage 264 | . . 3 . 14 228 . 19 Shots 8 | . . . . . 8 . . Rammed 24 | . . 2 . 2 1 . 19 Targets Rammed 25 | . . 2 . 2 1 1 19 Kicked 1 | . . . . . . 1 . Crushed . | . . . . . . . . Highest Temperature 479 | 120 97 78 . 316 165 479 45 Average Temperature 89 | 45 35 32 . 160 61 142 14 Received Heat Transfer 1288 | . 6 . . 30 639 81 532 Effects 3 | . . . . 2 . 1 . Shutdowns 1 | . . . . . . 1 . Interference 1 | . . . . 1 . . . Short Circuit 1 | . . . . 1 . . . Siege Activations . | . . . . . . . . Martial Activations . | . . . . . . . . Shielding Activations . | . . . . . . . . Robots Disrupted . | . . . . . . . . Combat Hostiles . | . . . . . . . . Robots Corrupted . | . . . . . . . . Combat Hostiles . | . . . . . . . . Parts Fried . | . . . . . . . . Impact Corruptions . | . . . . . . . . Robots Melted 3 | . . . . . 2 1 . Combat Hostiles 3 | . . . . . 2 1 . Parts Melted 18 | . . 3 . 2 4 9 . Heat Transferred 6135 | 495 136 666 . 629 2653 1406 150 Parts Sabotaged . | . . . . . . . . Parts Stolen . | . . . . . . . . Parts Stripped . | . . . . . . . . Power Chain Reactions 6 | . . . . . 6 . . Alert | -11 -10 -10 -10 -9 -8 -7 -6 ------- Run | Yrd Mat Min Exi Min Mat Fac Fac Maximum Alert Level 2 | . . . . . 2 1 . Low Security (%) 76 | 100 100 100 . 100 21 97 100 Level 1 3 | . . . . . 9 2 . Level 2 20 | . . . . . 69 . . Level 3 . | . . . . . . . . Level 4 . | . . . . . . . . Level 5 . | . . . . . . . . High Security . | . . . . . . . . Max Security . | . . . . . . . . Peak Influence 533 | 5 12 92 . 70 533 200 147 Initial 200 | . . 4 . . . 200 . Average 134 | 1 . 35 . 29 367 56 40 Influence Increases 1591 | 20 29 142 . 85 935 125 255 Destroy 0b10 Robot/C 640 | . . 80 . 40 440 80 . Destroy 0b10 Robot/NC 100 | 20 10 30 . 5 25 10 . Destroy Leader 154 | . 4 20 . 10 90 30 . Allied During Kill 12 | . . 12 . . . . . Successful Hack 10 | . . . . . 5 5 . Disable Machine 195 | . . . . . 195 . . Destroy Structure 120 | . . . . . 120 . . Lose Combat Pursuer 360 | . 15 . . 30 60 . 255 Influence Decreases 1462 | 20 17 154 . 85 493 565 128 Entered New Map 252 | . . 8 . . . 242 2 Time Decay 970 | 20 17 146 . 85 353 273 76 Lost Part 240 | . . . . . 140 50 50 Squads Dispatched 8 | . 1 . . . 3 2 2 Investigation 3 | . 1 . . . 1 . 1 Extermination 1 | . . . . . . 1 . Reinforcement 4 | . . . . . 2 1 1 Assault . | . . . . . . . . Garrison . | . . . . . . . . Intercept . | . . . . . . . . Searches Triggered . | . . . . . . . . Construction Impeded 2 | . . . . . 2 . . Haulers Reinforced . | . . . . . . . . Active Scanning Responses . | . . . . . . . . Cargo Convoy Interrupts . | . . . . . . . . Stealth | -11 -10 -10 -10 -9 -8 -7 -6 --------- Run | Yrd Mat Min Exi Min Mat Fac Fac Distress Signals 2 | . 1 . . . . . 1 Communications Jammed . | . . . . . . . . Distress Signals . | . . . . . . . . Times Spotted 72 | . 7 4 . 2 30 6 23 Peak Tracking Total 8 | . 7 2 . 2 6 2 8 Tactical Retreats 10 | . 1 . . 1 4 . 4 Traps | -11 -10 -10 -10 -9 -8 -7 -6 ------- Run | Yrd Mat Min Exi Min Mat Fac Fac Traps Triggered 6 | . 1 . . . 1 2 2 Indirectly 1 | . . . . . 1 . . Trap Hack Attempts . | . . . . . . . . Triggered . | . . . . . . . . Disarmed . | . . . . . . . . Reprogrammed . | . . . . . . . . Reused . | . . . . . . . . Traps Extracted . | . . . . . . . . Installed . | . . . . . . . . Triggered . | . . . . . . . . Machines | -11 -10 -10 -10 -9 -8 -7 -6 ---------- Run | Yrd Mat Min Exi Min Mat Fac Fac Machines Disabled 13 | . . . . . 13 . . Max in Single Turn 6 | . . . . . 6 . . Machines Repaired . | . . . . . . . . Machines Dismantled . | . . . . . . . . Machines Sabotaged . | . . . . . . . . Overloaded Fab Kills . | . . . . . . . . Hacking | -11 -10 -10 -10 -9 -8 -7 -6 --------- Run | Yrd Mat Min Exi Min Mat Fac Fac Machines Accessed 4 | . 1 . . . 2 1 . Terminals 4 | . 1 . . . 2 1 . Fabricators . | . . . . . . . . Repair Stations . | . . . . . . . . Recycling Units . | . . . . . . . . Scanalyzers . | . . . . . . . . Garrison Access . | . . . . . . . . Total Hacks 6 | . 1 . . . 4 1 . Successful 4 | . 1 . . . 2 1 . Failed 2 | . . . . . 2 . . Catastrophic . | . . . . . . . . Database Lockouts . | . . . . . . . . Manual 1 | . . . 1 . . . . Terminals 6 | . 1 . . . 4 1 . Fabricators . | . . . . . . . . Repair Stations . | . . . . . . . . Recycling Units . | . . . . . . . . Scanalyzers . | . . . . . . . . Garrison Access . | . . . . . . . . Terminal Hacks 4 | . 1 . . . 2 1 . Record 1 | . 1 . . . . . . Prototype ID Bank 1 | . . . . . 1 . . Open DSF 1 | . . . . . . 1 . Alert Level 1 | . . . . . 1 . . Fabricator Hacks . | . . . . . . . . Repair Station Hacks . | . . . . . . . . Recycling Unit Hacks . | . . . . . . . . Scanalyzer . | . . . . . . . . Garrison Access Hacks . | . . . . . . . . Unauthorized Hacks . | . . . . . . . . Terminals . | . . . . . . . . Fabricators . | . . . . . . . . Repair Stations . | . . . . . . . . Recycling Units . | . . . . . . . . Scanalyzers . | . . . . . . . . Garrison Access . | . . . . . . . . Data Cores Recovered . | . . . . . . . . Used . | . . . . . . . . Hacking Detections 3 | . 1 . . . 1 1 . Full Trace Events . | . . . . . . . . Feedback Events . | . . . . . . . . Feedback Blocked . | . . . . . . . . Robot Schematics Acquired . | . . . . . . . . Robots Built . | . . . . . . . . Authchips . | . . . . . . . . Time . | . . . . . . . . Total Robot Build Rating . | . . . . . . . . Part Schematics Acquired . | . . . . . . . . Parts Built . | . . . . . . . . Authchips . | . . . . . . . . Time . | . . . . . . . . Total Part Build Rating . | . . . . . . . . Part Studies Acquired . | . . . . . . . . Parts Repaired . | . . . . . . . . Time . | . . . . . . . . Parts Recycled . | . . . . . . . . Recycled Matter . | . . . . . . . . Retrieved Matter . | . . . . . . . . Retrieved Components . | . . . . . . . . Parts Scanalyzed . | . . . . . . . . Part Schematics Acquired . | . . . . . . . . Parts Damaged . | . . . . . . . . Bothacking | -11 -10 -10 -10 -9 -8 -7 -6 ------------ Run | Yrd Mat Min Exi Min Mat Fac Fac Used RIF Installer . | . . . . . . . . Robots Hacked 7 | . . . . . . 6 1 Non-combat 6 | . . . . . . 6 . Combat 1 | . . . . . . . 1 Robot Hacks Applied 13 | . . . . . . 12 1 parse_system 2 | . . . . . . 1 1 no_distress 6 | . . . . . . 6 . find_chute 4 | . . . . . . 4 . find_dsf 1 | . . . . . . 1 . Relay Couplers Released . | . . . . . . . . Fabnet Peak Effective % . | . . . . . . . . Robots Rewired . | . . . . . . . . Allies Hacked . | . . . . . . . . Hacks Repelled . | . . . . . . . . Allies | -11 -10 -10 -10 -9 -8 -7 -6 -------- Run | Yrd Mat Min Exi Min Mat Fac Fac Total Allies 3 | . . 3 . . . . . Largest Group 3 | . . 3 3 . . . . Highest-Rated Group 73 | . . 73 73 . . . . Highest-Rated Ally 31 | . . 31 31 . . . . Total Orders . | . . . . . . . . Ally Attacks 14 | . . 14 . . . . . Total Damage 255 | . . 255 . . . . . Kills 4 | . . 4 . . . . . Allies Corrupted . | . . . . . . . . Allies Melted . | . . . . . . . . Intel | -11 -10 -10 -10 -9 -8 -7 -6 ------- Run | Yrd Mat Min Exi Min Mat Fac Fac Active Infowar (turns) 741 | 18 204 395 103 . . . 21 Seismic 741 | 18 204 395 103 . . . 21 Robot Analysis Total . | . . . . . . . . Derelict Logs Recovered 1 | . . 1 . . . . . Drone Launches . | . . . . . . . . Drone Recoveries . | . . . . . . . . Exploration | -11 -10 -10 -10 -9 -8 -7 -6 ------------- Run | Yrd Mat Min Exi Min Mat Fac Fac Turns Passed 3452 | 182 204 395 222 205 943 867 434 Spaces Moved 2579 | 89 188 341 271 191 628 535 336 Core 177 | 2 . . . . 1 . 174 Treads 198 | 49 . . . . 149 . . Legs 850 | . . . . . 165 535 150 Wheels 1342 | 38 188 341 271 191 313 . . Hover . | . . . . . . . . Flight 12 | . . . . . . . 12 Fastest Speed 35 | 50 80 80 80 80 80 120 35 Average Speed 99 | 126 80 80 80 80 108 122 97 Slowest Speed 200 | 160 80 80 80 80 200 123 200 Overloaded Moves . | . . . . . . . . Propulsion Burnouts . | . . . . . . . . Robots Hopped . | . . . . . . . . Potential Cave-ins . | . . . . . . . . Cave-ins Triggered . | . . . . . . . . Exploration Rate (%) 33 | 4 36 47 65 58 41 8 11 Regions Visited 7 Branch Regions 3 Pre-discovered Areas . | . . . . . . . . Known Exits Taken . | . . . . . . . . Unknown Exits Taken 7 | 1 1 1 1 1 1 1 . Scrap Searched 1 | . . . . 1 . . . Spaces Dug . | . . . . . . . . Terrain Destroyed 161 | . . . . . 161 . . Melee . | . . . . . . . . Projectile . | . . . . . . . . AOE 161 | . . . . . 161 . . Terrain Rammed . | . . . . . . . . Walls Destroyed . | . . . . . . . . Machines Disabled . | . . . . . . . . Actions | -11 -10 -10 -10 -9 -8 -7 -6 --------- Run | Yrd Mat Min Exi Min Mat Fac Fac Total 3159 | 128 228 435 276 222 753 682 435 Wait 245 | . 21 77 . 14 7 69 57 Move 2572 | 88 187 340 270 190 627 534 336 Hop . | . . . . . . . . Pick Up 37 | 10 5 1 1 . 9 11 . Fast Attach 27 | 7 . . 2 1 8 3 6 Attach 25 | . 1 . . 1 14 5 4 Detach 3 | . . . . . 3 . . Swap 22 | 5 2 . . 2 9 4 . Drop 32 | 5 5 1 3 2 1 8 7 Fire 171 | 13 7 14 . 10 74 47 6 Melee . | . . . . . . . . Ram 23 | . . 2 . 2 . . 19 Kick 1 | . . . . . . 1 . Crush 1 | . . . . . 1 . . Escape Stasis . | . . . . . . . . Rewire . | . . . . . . . . Trap . | . . . . . . . . Miscellaneous . | . . . . . . . . Route ------- -11/Scrapyard -10/Materials -10/Mines (discovered 3 exits: [*Mat] / *Exi / [*Sub]) -10/Exiles -9/Mines (discovered 2 exits: *Mat x2) -8/Materials (discovered 2 exits: *Fac / Sto) -7/Factory -6/Factory History --------- Turn | Location | Event 4 | -11/Scrapyard | Discovered new exit (range 16) 183 | -11/Scrapyard | Entered Materials 338 | -10/Materials | Build established: Mutant 350 | -10/Materials | Discovered new exit (range 14) 387 | -10/Materials | Entered Mines 400 | -10/Mines | Discovered new exit (range 4) 611 | -10/Mines | Discovered new exit (range 10) 714 | -10/Mines | Received a Mining Laser from a helpful Derelict 727 | -10/Mines | Deemed a non-threat by the Exiles lab entrance 727 | -10/Mines | Discovered new exit (range 5) 782 | -10/Mines | Entered Exiles 782 | -10/Exiles | Accompanied by 3 allies 805 | -10/Exiles | Met 8R-AWN 812 | -10/Exiles | Led the pair of lost Derelicts to a safe place 829 | -10/Exiles | Met EX-HEX 852 | -10/Exiles | Met EX-BIN 862 | -10/Exiles | Aligned with FarCom system 863 | -10/Exiles | Given EX-Vault access code 882 | -10/Exiles | Opened EX-Vault 885 | -10/Exiles | Found Prototype Device 885 | -10/Exiles | Identified Trap Reconfigurator 902 | -10/Exiles | Warned to stay clear of 0b10 Research branches 928 | -10/Exiles | Met EX-DEC 995 | -10/Exiles | Discovered new exit (range 11) 1004 | -10/Exiles | Left Exiles lab with Trap Reconfigurator 1004 | -10/Exiles | Entered Mines 1005 | -9/Mines | Assembled infested the area 1071 | -9/Mines | Discovered new exit (range 12) 1201 | -9/Mines | Discovered new exit (range 8) 1209 | -9/Mines | Received a Rocket Launcher from a helpful Derelict 1209 | -9/Mines | Entered Materials 1209 | -8/Materials | Evolved 4 slots: Propulsion x2, Utility x2 1210 | -8/Materials | Identified exit to Storage 1431 | -8/Materials | Destroyed 7 combat bots 1585 | -8/Materials | Lost 4 parts (2n1u1w) 1976 | -8/Materials | Core integrity fell below 50% 2014 | -8/Materials | Lost 3 parts (1p1u1w) 2129 | -8/Materials | Discovered new exit (range 15) 2152 | -8/Materials | Entered Factory 2152 | -7/Factory | Evolved 2 slots: Power x1, Weapon x1 2572 | -7/Factory | Build established: Tank 2941 | -7/Factory | Lost 3 parts (1n2w) 2968 | -7/Factory | Discovered new exit (range 15) 3019 | -7/Factory | Entered another Factory area 3019 | -6/Factory | Evolved 2 slots: Utility x1, Weapon x1 3190 | -6/Factory | Build established: Scavenger-Mutant 3296 | -6/Factory | Lost 5 parts (1p1n2u1w) 3371 | -6/Factory | Core integrity fell below 50% 3389 | -6/Factory | Core integrity fell below 20% 3417 | -6/Factory | Lost 4 parts (4w) 3453 | -6/Factory | Destroyed by L-41 Fighter with Axe Last Messages --------------- 03371_ Critical hit (Burn: +37). 03373_ Critical hit (Burn: +50). 03376_ Remote Datajack destroyed. 03377_ Remote Datajack severed. 03379_ Acquired Plasma Cannon. 03379_ Penetrated by Slug. 03379_ Assembly Bed disabled. 03386_ Plasma Cannon destroyed. 03388_ System corrupted: IFF burst signal emitted. 03388_ Penetrated by Slug. 03391_ ALERT: Security rotation in progress. 03392_ Slug penetrates Assembly Bed. 03405_ Acquired Hardlight Generator. 03426_ Acquired Hacking Suite. 03430_ Acquired Seismic Detector. 03438_ Acquired Melee Analysis Suite. 03449_ Slug penetrates Wall. 03451_ Seismic Detector destroyed. 03452_ Penetrated by Slug. Map ----- +----------------------------------------------------+ | | | | | | | | | | | | | | | | | | | ##???????????????????????????????????????????? | | #??????????##############???????????????????? | | ???????????# #???????????????????? | | ##??????????# #???????????????????? | | #??????????# #???????????????????? | | ##??????????# #???????????????????? | | * #??????????# #???????????????????? | | #####???????# #???????????????????? | | " """???# #???????????????????? | | ######## """???# #???????????????????? | | #??????????????# #???????????????????? | | /########???????# #???????????????????? | | | #???????# #???????????????????? | | "" #???????# #???????????????????? | | "" #???????#######+##########???????????????? | | Y" #???????????# #???????????????? | | "" #???????????# @ #???????????????? | | "" #???????????# gl #???????????????? | | #??#+??###### #???????????????? | | #??# h #???????????????? | | ####+##########/#### #???????????????? | | ## g # #???????????????? | | ## #? ?????????????? | | """ " ## #? ????????????? | | """""" ## """ """ """ """ +?? ???????????? | | """""" ## """ """ """ """ #??? ???????????? | | """""" ## """ """ """ """ #??? ????????????? | | ## #???? ????????????? | | ###+############+#######+###????? ??????????????? | | """ ???????????????????????? | | "T" ???????????????????????? | | ????????????????????? | | """ """ ????????????????????? | | """ """ ??????????????????? | | ############## """ """ ####???????????????????? | | ?????????????# ??#??????????????????????? | | ?????????????# """ """ ?????????????????????????? | | ?????????????# """ """ ?????????????????????????? | | ???????????# """ ""???????????????????????????? | | #??????????# ??????????????????????????????? | | #??????????# ???????????????????????????????? | +----------------------------------------------------+ Best States ------------- Heat Dissipation 67 Energy Generation 23 Energy Capacity 535 Matter Stores 300 Matter Capacity 400 Sight Range 16 Terrain Scan Density 10 Armor Coverage 375 Evasion (%) 55 Melee Accuracy 5 Recoil Reduction 1 Offensive Hacking 10 Item Schematics ----------------- None Robot Schematics ------------------ None Fabricated ------------ Nothing Repaired ---------- Nothing Studied --------- None Alien Tech Used ----------------- None Achievements -------------- Deductive Reasoning Heavy Suspicion Junior Dev Not Today, Chutes Oops Challenges ------------ None Game ------ Seed GlidesysTimingInterface Manual? 0 Play Time 00:53:50 Cumulative 5.4 hours Start 2026.02.21 @ 08:33:05 End 2026.02.21 @ 10:11:23 Sessions 3 Manual Loads 0 Difficulty Rogue Special Mode None Game No. 7 Rogue 7 Adventurer 0 Explorer 0 Win Type - Total 0 Types 0/0/0/0/0/0/0/0/0/0 Lore% 6 Gallery% 7 Achievement% 9 Wizard Run 0 Options --------- Layout 1 ASCII 0 Keyboard 0 Movement Mouse Keybinds 0 Fullscreen 1 Font 32/SmallcapsGlow Map View 50x35 Zoom Use 0% Tactical HUD 1 Map Filters NONE Filters NONE Steam 1 RUN: f083eb0f-0254-4a9d-a008-b70feb1e4dfe